bitfinex/quotes_BTCUSD_20230403
["timestamp","ask_amount","ask_price","bid_price","bid_amount"]
[1680486292009,1.3023925,27723.0,27722.0,0.018036]
[1680486292897,1.4812715,27723.0,27722.0,0.018036]
[1680486293134,1.83624211,27723.0,27722.0,6e-06]
[1680486293367,1.83624211,27723.0,27704.0,0.360948]
[1680486293368,0.178879,27706.0,27704.0,0.360948]
[1680486293603,0.14197487,27705.0,27704.0,0.180658]
[1680486293867,0.14197487,27705.0,27704.0,0.074693]
[1680486294100,0.14197487,27705.0,27704.0,0.146884]
[1680486294563,0.34197487,27705.0,27704.0,0.146704]
[1680486294806,0.00021,27705.0,27704.0,0.146704]
[1680486295058,0.378879,27705.0,27704.0,0.148143]
[1680486295289,1.67762514,27705.0,27704.0,0.126333]
[1680486295746,0.379089,27705.0,27704.0,0.126333]
[1680486295981,0.52106387,27705.0,27704.0,0.126333]
[1680486296216,0.379089,27705.0,27704.0,0.126333]
[1680486296420,1.67763561,27705.0,27704.0,0.126333]
[1680486296925,0.179089,27705.0,27704.0,0.85650797]
[1680486297153,0.05,27714.0,27704.0,0.87763597]
[1680486297154,0.00021,27706.0,27704.0,0.87763597]
[1680486297385,0.178879,27707.0,27705.0,0.019467]
[1680486297796,0.178879,27707.0,27706.0,0.054139]
[1680486298035,0.178879,27707.0,27706.0,0.018046]
[1680486298036,1.67741055,27707.0,27706.0,0.018046]
[1680486298265,2.07093452,27707.0,27706.0,0.054139]
[1680486298495,2.07072452,27707.0,27706.0,0.050039]
[1680486299641,1.71574955,27707.0,27706.0,0.050039]
[1680486299865,1.29353155,27707.0,27706.0,0.050039]
[1680486300084,0.00021,27709.0,27706.0,0.050039]
[1680486300362,0.378879,27707.0,27706.0,0.050039]
[1680486300583,0.178879,27707.0,27706.0,0.050219]
[1680486300809,0.178879,27707.0,27706.0,0.42621097]
[1680486301044,0.00021,27710.0,27706.0,0.80159097]
[1680486301273,0.178879,27707.0,27706.0,0.40501397]
[1680486301516,0.178879,27707.0,27706.0,0.42609897]
[1680486301754,0.378879,27707.0,27706.0,0.14331]
[1680486301988,0.87582884,27707.0,27706.0,0.122345]
[1680486302226,0.178879,27693.0,27692.0,0.20942]
[1680486302452,0.32085387,27693.0,27692.0,0.230519]
[1680486302679,0.32085387,27693.0,27692.0,0.356908]
[1680486302906,0.14197487,27693.0,27692.0,1.08708297]
[1680486303141,0.178879,27696.0,27692.0,1.08708297]
[1680486303376,0.178879,27696.0,27694.0,0.3752]
[1680486303610,0.178879,27696.0,27695.0,0.521924]
[1680486303840,0.178879,27696.0,27695.0,0.87707897]
[1680486304104,0.178879,27696.0,27695.0,0.146904]
[1680486304333,0.178879,27696.0,27695.0,0.50187897]
[1680486304562,0.00021,27702.0,27696.0,0.05]
[1680486304563,6e-05,27697.0,27696.0,0.05]
[1680486304793,0.00021,27704.0,27697.0,0.3752]
[1680486305019,0.00021,27704.0,27696.0,0.75499097]
[1680486305020,0.367245,27705.0,27699.0,0.306868]
[1680486305261,0.35497497,27704.0,27700.0,0.021727]
[1680486305524,0.35497497,27704.0,27699.0,0.306868]
[1680486305525,0.2,27703.0,27701.0,0.054148]
[1680486305750,0.39155897,27702.0,27701.0,0.054148]
[1680486305974,0.00021,27702.0,27701.0,0.054148]
[1680486306199,0.20021,27703.0,27701.0,0.054148]
[1680486306432,0.2,27703.0,27701.0,0.054148]
[1680486306919,0.2,27703.0,27702.0,0.021256]
[1680486307152,0.35497497,27703.0,27702.0,0.018049]
[1680486307403,0.2,27704.0,27702.0,0.018049]
[1680486307860,0.36555668,27705.0,27702.0,0.090245]
[1680486308773,0.36555668,27705.0,27703.0,0.020816]
[1680486309007,0.36555668,27705.0,27704.0,0.054142]
[1680486309285,0.36555668,27705.0,27704.0,0.075682]
[1680486311031,0.36506032,27705.0,27704.0,0.075682]
[1680486311836,0.36506032,27705.0,27704.0,0.054142]
[1680486312835,0.36527032,27705.0,27704.0,0.054142]
[1680486313525,0.36506032,27705.0,27704.0,0.054142]
[1680486313945,0.36527032,27705.0,27704.0,0.054142]
[1680486314146,0.36506032,27705.0,27704.0,0.054142]
[1680486314151,0.72003529,27705.0,27704.0,0.054142]
[1680486316760,0.72003529,27705.0,27701.0,0.018049]
[1680486316761,0.75821129,27705.0,27701.0,0.018049]
[1680486316964,0.2,27703.0,27699.0,0.036281]
[1680486317171,0.2,27703.0,27698.0,0.00018]
[1680486317174,0.2,27700.0,27699.0,0.01805]
[1680486317623,0.2,27700.0,27698.0,0.036103]
[1680486317775,0.2,27700.0,27697.0,0.072389]
[1680486317777,0.2,27703.0,27701.0,0.018049]
[1680486317778,0.05,27702.0,27701.0,0.018049]
[1680486317779,0.25,27702.0,27700.0,0.01805]
[1680486317783,0.2,27701.0,27700.0,0.01805]
[1680486317784,0.20021,27701.0,27699.0,0.018051]
[1680486318065,0.58655797,27701.0,27699.0,0.018051]
[1680486318328,0.39221697,27700.0,27699.0,0.018051]
[1680486318620,0.39221697,27700.0,27698.0,0.018051]
[1680486318621,0.39242697,27700.0,27698.0,0.018051]
[1680486318862,0.2,27697.0,27693.0,0.00012]
[1680486319089,0.35497497,27695.0,27693.0,0.018054]
[1680486319330,0.03676,27694.0,27692.0,0.018055]
[1680486319569,0.35497497,27693.0,27692.0,0.018055]
[1680486319792,0.39222097,27693.0,27692.0,0.018055]
[1680486320033,0.39222097,27693.0,27692.0,0.126389]
[1680486320259,0.53419584,27693.0,27689.0,0.20217]
[1680486320488,0.53419584,27693.0,27687.0,0.0216]
[1680486320489,0.5752,27688.0,27687.0,0.0216]
[1680486320721,0.5752,27688.0,27680.0,6e-05]
[1680486320722,0.2,27685.0,27680.0,6e-05]
[1680486320953,0.2,27682.0,27681.0,0.075727]
[1680486321233,0.673953,27682.0,27680.0,0.018063]
[1680486321460,0.813,27681.0,27675.0,0.018066]
[1680486321684,0.813,27681.0,27669.0,0.01825]
[1680486321685,0.2,27678.0,27669.0,0.01825]
[1680486321910,0.043359,27676.0,27667.0,0.00018]
[1680486322148,0.037596,27675.0,27667.0,0.00018]
[1680486322381,0.037596,27675.0,27667.0,0.00012]
[1680486322382,0.79277497,27668.0,27667.0,0.00012]
[1680486322614,0.00018,27667.0,27664.0,0.00018]
[1680486322844,0.49694984,27666.0,27662.0,0.0217]
[1680486323076,0.035909,27665.0,27662.0,0.039775]
[1680486323306,0.14197487,27664.0,27662.0,0.039775]
[1680486323539,0.39293597,27663.0,27662.0,0.039775]
[1680486323807,0.39293597,27663.0,27662.0,0.0217]
[1680486324282,0.39293597,27663.0,27655.0,0.072318]
[1680486324283,0.39293597,27663.0,27655.0,0.072498]
[1680486324515,0.17872287,27662.0,27660.0,0.018076]
[1680486324750,0.39406897,27661.0,27660.0,0.036152]
[1680486324985,0.00021,27664.0,27660.0,0.054228]
[1680486325214,9e-05,27671.0,27660.0,0.429428]
[1680486325445,0.35497497,27669.0,27660.0,0.054348]
[1680486325672,0.49694984,27669.0,27661.0,0.021728]
[1680486325913,0.14197487,27668.0,27663.0,0.126519]
[1680486326159,0.35497497,27664.0,27662.0,0.00012]
[1680486326432,0.037931,27663.0,27662.0,0.018074]
[1680486326669,0.03751533,27663.0,27662.0,0.018074]
[1680486326898,0.03751533,27663.0,27661.0,0.018075]
[1680486326899,0.3924903,27663.0,27661.0,0.018075]
[1680486327180,0.37541,27665.0,27662.0,0.018075]
[1680486327424,0.3752,27655.0,27641.0,0.371776]
[1680486327677,0.3752,27653.0,27648.0,0.036167]
[1680486327901,0.414292,27652.0,27648.0,0.018084]
[1680486328146,0.3752,27650.0,27643.0,0.027982]
[1680486328384,0.3752,27650.0,27643.0,0.027802]
[1680486328385,0.18085,27647.0,27643.0,0.027802]
[1680486328623,0.35497497,27648.0,27643.0,0.027802]
[1680486328624,0.035219,27646.0,27644.0,0.018086]
[1680486328862,0.14197487,27646.0,27644.0,0.018086]
[1680486329115,0.035571,27647.0,27643.0,0.027802]
[1680486329116,0.00021,27647.0,27645.0,0.054258]
[1680486329354,0.037553,27647.0,27643.0,0.027802]
[1680486329597,0.53585497,27644.0,27643.0,2e-06]
[1680486329826,0.57426997,27644.0,27643.0,2e-06]
[1680486330060,1.01603484,27644.0,27633.0,0.072555]
[1680486330324,1.01603484,27644.0,27633.0,0.018094]
[1680486330325,0.35497497,27637.0,27633.0,0.018094]
[1680486330551,0.53491684,27636.0,27633.0,0.018094]
[1680486330779,0.038156,27635.0,27633.0,0.018094]
[1680486331006,0.35497497,27634.0,27633.0,0.018094]
[1680486331237,0.39303397,27634.0,27633.0,0.018274]
[1680486331517,0.39303397,27634.0,27632.0,0.00018]
[1680486331766,0.39303397,27634.0,27616.0,0.5]
[1680486331767,0.06534,27625.0,27611.0,0.018108]
[1680486332000,0.4378,27612.0,27608.0,6e-05]
[1680486332230,0.4378,27612.0,27590.0,0.181219]
[1680486332231,0.13131,27612.0,27596.0,0.03732545]
[1680486332464,0.337205,27611.0,27590.0,0.00012]
[1680486332693,0.337205,27611.0,27597.0,0.35497497]
[1680486332694,0.14197487,27610.0,27597.0,0.35497497]
[1680486332950,0.39189297,27609.0,27597.0,0.37309197]
[1680486333183,0.35497497,27598.0,27597.0,0.018297]
[1680486333416,0.35497497,27598.0,27591.0,0.17781654]
[1680486333417,0.01829,27597.0,27592.0,0.00018]
[1680486333652,0.01829,27597.0,27587.0,0.00012]
[1680486333653,0.33337497,27590.0,27587.0,0.00012]
[1680486333886,0.33337497,27590.0,27583.0,0.035997]
[1680486333887,0.53439984,27590.0,27584.0,0.19022877]
[1680486334117,0.03745,27590.0,27589.0,0.35597497]
[1680486334353,0.00015,27591.0,27589.0,0.37523397]
[1680486334354,0.00021,27591.0,27589.0,0.37523397]
[1680486334584,0.2,27606.0,27590.0,0.020806]
[1680486334585,0.00021,27603.0,27590.0,0.020806]
[1680486334811,0.2,27606.0,27589.0,0.4759234]
[1680486334812,0.00021,27604.0,27589.0,0.0375234]
[1680486335046,0.35497497,27602.0,27590.0,0.34674056]
[1680486335320,0.00021,27602.0,27591.0,0.28135711]
[1680486335562,0.00021,27602.0,27593.0,0.35497497]
[1680486335785,0.00021,27605.0,27594.0,0.020937]
[1680486336029,0.00021,27605.0,27596.0,0.018117]
[1680486336259,0.30021,27605.0,27603.0,0.35497497]
[1680486336486,0.30021,27605.0,27603.0,0.35491497]
[1680486336715,0.0027,27604.0,27603.0,0.35491497]
[1680486336945,0.0027,27604.0,27603.0,0.37302797]
[1680486337176,0.0027,27604.0,27603.0,0.39272997]
[1680486337402,0.0027,27604.0,27602.0,0.00018]
[1680486337627,0.3027,27604.0,27603.0,0.36808797]
[1680486337860,0.3027,27604.0,27602.0,0.00868]
[1680486337861,0.79985984,27604.0,27602.0,0.00868]
[1680486338093,0.79985984,27604.0,27602.0,0.0085]
[1680486338094,0.337592,27603.0,27602.0,0.0085]
[1680486338317,0.337592,27603.0,27595.0,0.00012]
[1680486338318,0.0027,27598.0,27595.0,0.00018]
[1680486338550,0.14197487,27597.0,27595.0,0.018118]
[1680486338770,0.14197487,27597.0,27595.0,0.018298]
[1680486338996,0.0027,27598.0,27595.0,0.018298]
[1680486339237,0.0027,27598.0,27595.0,0.018118]
[1680486339478,0.0027,27598.0,27595.0,0.37309297]
[1680486339706,0.0027,27598.0,27596.0,0.35497497]
[1680486339932,0.14197487,27597.0,27588.0,0.072493]
[1680486340159,0.14197487,27597.0,27593.0,0.01812]
[1680486340393,0.49694984,27597.0,27593.0,0.01812]
[1680486340632,0.49694984,27597.0,27591.0,0.036243]
[1680486340633,0.00021,27597.0,27591.0,6e-05]
[1680486340862,0.0027,27598.0,27591.0,6e-05]
[1680486340863,0.49694984,27596.0,27591.0,0.018121]
[1680486341097,0.35497497,27594.0,27591.0,0.018121]
[1680486341323,0.037414,27593.0,27591.0,0.018121]
[1680486341552,0.05,27601.0,27586.0,6e-05]
[1680486341843,0.05,27601.0,27591.0,0.018121]
[1680486341844,0.00276,27596.0,27591.0,0.018121]
[1680486342311,0.35497497,27600.0,27591.0,0.018121]
[1680486342312,0.00297,27598.0,27592.0,0.55221497]
[1680486342550,0.03235938,27600.0,27593.0,0.039548]
[1680486342779,0.03235938,27600.0,27593.0,0.01812]
[1680486342780,0.00276,27594.0,27593.0,0.01812]
[1680486343088,0.039023,27596.0,27593.0,0.37197449]
[1680486343308,0.00276,27597.0,27592.0,0.01812]
[1680486343563,0.14473487,27597.0,27589.0,0.00012]
[1680486343820,0.14473487,27597.0,27587.0,0.036248]
[1680486343821,0.14197487,27596.0,27592.0,0.01812]
[1680486344077,0.00276,27597.0,27593.0,0.021705]
[1680486344324,0.00276,27597.0,27593.0,0.0648093]
[1680486344554,0.00276,27597.0,27593.0,0.018119]
[1680486344555,0.49970984,27597.0,27593.0,0.018119]
[1680486344783,0.00276,27594.0,27593.0,0.018119]
[1680486345029,0.00276,27594.0,27591.0,0.036243]
[1680486345288,0.38733435,27600.0,27586.0,0.19724]
[1680486345289,0.00276,27597.0,27593.0,0.35497497]
[1680486346036,0.00276,27597.0,27595.0,0.038388]
[1680486346545,0.00276,27597.0,27595.0,0.018118]
[1680486346774,0.00276,27597.0,27595.0,0.37309297]
[1680486347028,0.00276,27597.0,27596.0,0.020791]
[1680486347253,0.00276,27597.0,27596.0,0.038909]
[1680486347485,0.00276,27597.0,27596.0,0.018118]
[1680486348223,0.00276,27597.0,27591.0,0.19724]
[1680486348464,0.13697487,27596.0,27592.0,0.91988497]
[1680486348701,0.00276,27597.0,27594.0,0.3752]
[1680486348933,0.00276,27597.0,27595.0,0.39447897]
[1680486349175,0.00276,27597.0,27596.0,0.030195]
[1680486349411,0.00276,27597.0,27596.0,0.39478797]
[1680486349638,0.00276,27597.0,27596.0,0.1566727]
[1680486349869,0.00276,27597.0,27596.0,0.51164767]
[1680486350100,1.938e-05,27600.0,27597.0,0.42475245]
[1680486350326,0.00015,27603.0,27599.0,0.73017497]
[1680486350327,0.00021,27603.0,27599.0,0.73017497]
[1680486350556,0.00021,27603.0,27601.0,0.3752]
[1680486350837,0.00021,27603.0,27602.0,0.04804]
[1680486351066,0.00021,27603.0,27602.0,0.054343]
[1680486351293,0.00021,27603.0,27602.0,0.37308897]
[1680486351526,0.00021,27603.0,27599.0,0.036232]
[1680486351756,0.00021,27604.0,27601.0,0.018114]
[1680486351985,0.039026,27604.0,27599.0,0.0108882]
[1680486352219,0.00021,27604.0,27603.0,0.35497497]
[1680486352452,0.00021,27604.0,27603.0,0.37642297]
[1680486352679,0.00021,27604.0,27603.0,0.37308797]
[1680486352909,0.00021,27604.0,27603.0,0.43154477]
[1680486353140,0.50021,27606.0,27603.0,0.77660177]
[1680486353405,0.64218487,27606.0,27604.0,0.020502]
[1680486353641,0.5,27606.0,27600.0,0.018115]
[1680486353884,0.2,27604.0,27599.0,0.018116]
[1680486354113,0.17677887,27603.0,27597.0,0.00012]
[1680486354338,0.39281897,27602.0,27597.0,0.018117]
[1680486354568,0.038,27601.0,27598.0,0.35497497]
[1680486354818,0.039353,27603.0,27599.0,0.018116]
[1680486355044,0.037607,27602.0,27597.0,0.036234]
[1680486355283,0.037769,27606.0,27599.0,0.40932397]
[1680486355511,0.037769,27606.0,27600.0,0.39590737]
[1680486355753,0.037769,27606.0,27600.0,0.41402237]
[1680486356015,0.037769,27606.0,27599.0,0.00018]
[1680486356016,0.35497497,27605.0,27599.0,0.00018]
[1680486356257,0.039115,27604.0,27595.0,0.3752]
[1680486356496,0.14197487,27603.0,27596.0,0.018117]
[1680486356995,0.036928,27602.0,27597.0,0.0748472]
[1680486356997,0.036928,27602.0,27596.0,0.00018]
[1680486357628,0.14197487,27601.0,27596.0,0.00018]
[1680486358114,0.13697487,27602.0,27596.0,0.35515497]
[1680486358115,0.13697487,27602.0,27596.0,0.37327297]
[1680486358116,0.00021,27605.0,27597.0,0.73017497]
[1680486358597,0.03186883,27601.0,27599.0,0.018116]
[1680486358899,0.03186883,27601.0,27600.0,0.73017497]
[1680486359171,0.00021,27606.0,27600.0,0.018115]
[1680486359429,0.036404,27606.0,27600.0,0.74828997]
[1680486359704,0.86309141,27607.0,27602.0,0.3752]
[1680486360126,0.86309141,27607.0,27604.0,0.3752]
[1680486360128,0.86309141,27607.0,27603.0,0.35497497]
[1680486360414,0.86309141,27607.0,27603.0,0.73017497]
[1680486360834,1.30333592,27606.0,27603.0,0.73017497]
[1680486360836,1.30333592,27606.0,27601.0,0.00018]
[1680486361171,0.038376,27605.0,27600.0,0.018115]
[1680486361710,0.038376,27605.0,27601.0,0.0054347]
[1680486361711,0.14197487,27605.0,27601.0,0.0054347]
[1680486361715,0.03172466,27606.0,27599.0,0.018116]
[1680486362734,0.03172466,27606.0,27598.0,0.036233]
[1680486362738,0.49694984,27605.0,27596.0,0.00018]
[1680486362740,1.11285638,27604.0,27595.0,0.00018]
[1680486363170,0.054348,27597.0,27594.0,0.00018]
[1680486363381,0.054348,27597.0,27587.0,0.00018]
[1680486363660,0.35497497,27592.0,27585.0,0.0215]
[1680486364173,0.214498,27590.0,27583.0,0.017871]
[1680486364176,0.18128,27586.0,27583.0,1e-06]
[1680486364468,0.91144497,27584.0,27583.0,1e-06]
[1680486364745,0.91144497,27584.0,27578.0,0.0215]
[1680486364746,1.50132982,27584.0,27576.0,0.00153651]
[1680486365352,0.91149497,27578.0,27577.0,0.00976]
[1680486366325,0.91129397,27578.0,27576.0,0.00141651]
[1680486367364,0.91129397,27578.0,27567.0,0.0287771]
[1680486368346,1.38962484,27578.0,27567.0,0.0287771]
[1680486369014,1.38962484,27578.0,27558.0,0.018323]
[1680486369015,0.00744513,27569.0,27558.0,0.018323]
[1680486369018,0.00744513,27573.0,27563.0,0.018139]
[1680486369020,0.01117622,27574.0,27566.0,0.018137]
[1680486369022,0.01117622,27574.0,27573.0,0.19255487]
[1680486369028,0.04477058,27600.0,27576.0,0.53590048]
[1680486369030,0.04477058,27600.0,27584.0,0.19255487]
[1680486369033,0.00027,27584.0,27577.0,0.21405487]
[1680486369035,0.00042,27591.0,27577.0,0.21405487]
[1680486369037,9e-05,27592.0,27577.0,0.21405487]
[1680486369039,0.14197487,27581.0,27577.0,0.0215]
[1680486369043,0.00744513,27587.0,27577.0,0.0215]
[1680486369291,0.4124201,27587.0,27579.0,0.054387]
[1680486369595,0.00744513,27587.0,27580.0,0.73017497]
[1680486369876,0.00744513,27587.0,27579.0,0.054177]
[1680486369877,6e-05,27589.0,27584.0,0.73017497]
[1680486370155,0.00021,27595.0,27585.0,0.87792397]
[1680486370665,0.00744513,27595.0,27587.0,0.3752]
[1680486370667,0.01021,27600.0,27587.0,0.3752]
[1680486371188,0.00744513,27595.0,27589.0,0.502059]
[1680486371190,0.01744513,27600.0,27591.0,0.35497497]
[1680486371480,0.01744513,27600.0,27593.0,0.73017497]
[1680486371758,0.01744513,27600.0,27595.0,0.3752]
[1680486372042,0.01,27600.0,27596.0,0.76950797]
[1680486372614,0.01744513,27600.0,27596.0,0.81424497]
[1680486372618,0.01744513,27600.0,27596.0,0.80574497]
[1680486373127,0.01744513,27600.0,27596.0,0.84350615]
[1680486374225,0.01744513,27600.0,27596.0,0.021215]
[1680486374227,0.01744513,27600.0,27596.0,0.35498797]
[1680486374229,0.01,27600.0,27596.0,0.37013497]
[1680486374498,0.01,27600.0,27596.0,0.74533497]
[1680486374751,0.00744513,27599.0,27596.0,0.75383497]
[1680486375021,0.00744513,27599.0,27594.0,0.00012]
[1680486375256,0.00744513,27599.0,27596.0,0.054355]
[1680486375503,0.01,27600.0,27592.0,0.00018]
[1680486375718,0.00744513,27593.0,27588.0,0.036247]
[1680486375942,0.02658313,27597.0,27592.0,0.018121]
[1680486376164,0.045631,27596.0,27592.0,0.018121]
[1680486376427,0.07842545,27596.0,27592.0,0.018121]
[1680486376664,0.3815581,27597.0,27592.0,0.0235573]
[1680486376665,0.031579,27595.0,27592.0,0.0235573]
[1680486376899,0.00533077,27597.0,27592.0,0.37865227]
[1680486377127,0.00533077,27597.0,27592.0,0.37871227]
[1680486377351,0.00533077,27597.0,27592.0,0.018301]
[1680486377352,0.03408198,27595.0,27592.0,0.018301]
[1680486377577,0.031094,27594.0,27592.0,0.018121]
[1680486377806,0.031094,27594.0,27590.0,0.036363]
[1680486378057,0.03408198,27595.0,27592.0,0.018121]
[1680486378288,0.03408198,27595.0,27593.0,0.028679]
[1680486378562,0.03408198,27595.0,27594.0,0.78923097]
[1680486378784,0.03408198,27595.0,27594.0,0.81631997]
[1680486379060,0.03408198,27595.0,27594.0,0.82481997]
[1680486379281,0.00533077,27598.0,27594.0,0.82481997]
[1680486379505,0.00533077,27598.0,27596.0,0.3752]
[1680486379727,0.00533077,27598.0,27597.0,0.82701937]
[1680486379958,0.01,27600.0,27597.0,0.82713937]
[1680486380213,0.0001,27600.0,27599.0,0.73017497]
[1680486380457,0.00021,27612.0,27603.0,0.3752]
[1680486380696,0.00021,27612.0,27602.0,0.19466923]
[1680486380697,0.00021,27613.0,27607.0,0.35497497]
[1680486380930,0.00021,27615.0,27608.0,0.88596697]
[1680486381163,0.03754347,27611.0,27610.0,0.3752]
[1680486381389,0.03754347,27611.0,27610.0,0.77585138]
[1680486381629,0.02386,27618.0,27616.0,0.37442441]
[1680486381852,0.02365,27618.0,27617.0,0.88521338]
[1680486382065,0.02365,27618.0,27617.0,0.89307364]
[1680486382288,0.02365,27618.0,27617.0,1.07411364]
[1680486382748,0.02365,27618.0,27617.0,1.08338312]
[1680486382994,0.02365,27618.0,27617.0,0.91084312]
[1680486383206,0.02365,27618.0,27617.0,0.89307364]
[1680486383436,5e-05,27618.0,27617.0,1.08774287]
[1680486383661,0.06534,27623.0,27621.0,0.37442441]
[1680486383889,0.00021,27630.0,27624.0,0.56986923]
[1680486384150,0.00021,27634.0,27629.0,0.35497497]
[1680486384372,0.00533077,27633.0,27630.0,0.054286]
[1680486384588,0.00533077,27633.0,27631.0,0.023302]
[1680486384812,0.00533077,27638.0,27632.0,0.0738893]
[1680486385036,0.00533077,27639.0,27633.0,0.36347497]
[1680486385261,0.60950099,27632.0,27631.0,0.00012]
[1680486385493,0.50950099,27632.0,27631.0,0.55657523]
[1680486385702,0.50950099,27632.0,27631.0,0.71899923]
[1680486385703,0.40957273,27632.0,27631.0,0.71899923]
[1680486385926,0.20387273,27632.0,27631.0,1.5389036]
[1680486386146,0.06187273,27632.0,27631.0,1.5387236]
[1680486386376,0.06187273,27632.0,27631.0,0.77013489]
[1680486386610,0.06187273,27632.0,27631.0,0.58917889]
[1680486386833,0.06180099,27632.0,27631.0,0.58917889]
[1680486387295,0.06180099,27632.0,27631.0,0.50829689]
[1680486387522,0.06180099,27632.0,27631.0,0.58067889]
[1680486388010,0.06180099,27632.0,27631.0,1.01437889]
[1680486388238,9.9e-07,27632.0,27631.0,1.01437889]
[1680486388463,0.01,27641.0,27634.0,0.3752]
[1680486388686,0.01,27641.0,27640.0,0.35497497]
[1680486388906,0.01,27641.0,27640.0,0.43587597]
[1680486389127,0.01,27641.0,27640.0,0.044722]
[1680486389360,0.01533077,27641.0,27640.0,0.044722]
[1680486389797,0.01,27641.0,27640.0,0.39969697]
[1680486390023,0.01,27641.0,27640.0,0.44369067]
[1680486390719,0.01,27641.0,27640.0,0.019229]
[1680486390943,0.00533077,27637.0,27634.0,0.036186]
[1680486391175,0.00533077,27635.0,27634.0,0.072372]
[1680486391402,0.00533077,27635.0,27634.0,0.128146]
[1680486391641,0.05756581,27641.0,27634.0,0.51402857]
[1680486391913,0.05756581,27641.0,27640.0,0.9250252]
[1680486392143,0.05756581,27641.0,27640.0,2.3360842]
[1680486392376,0.02879977,27650.0,27642.0,0.3752]
[1680486392603,0.02879977,27650.0,27648.0,0.35497497]
[1680486392831,0.02879977,27650.0,27648.0,0.50881697]
[1680486393765,0.02879977,27650.0,27648.0,0.88401697]
[1680486393993,0.02879977,27650.0,27648.0,0.50031697]
[1680486394229,0.07090987,27649.0,27648.0,0.55034867]
[1680486394455,0.07090987,27649.0,27648.0,0.1953737]
[1680486394677,0.07090987,27649.0,27648.0,0.145342]
[1680486395119,0.290684,27647.0,27645.0,0.37538]
[1680486395345,0.00514977,27646.0,27645.0,0.00018]
[1680486395580,0.00514977,27646.0,27645.0,0.013062]
[1680486395788,0.00514977,27646.0,27645.0,0.89775057]
[1680486396023,0.00514977,27646.0,27645.0,0.89793057]
[1680486396239,0.05240361,27646.0,27645.0,0.89793057]
[1680486396463,0.00010761,27647.0,27645.0,0.89793057]
[1680486396689,1.761e-05,27647.0,27646.0,0.85153343]
[1680486396920,1.761e-05,27647.0,27646.0,0.90613343]
[1680486397139,1.761e-05,27647.0,27646.0,1.31323291]
[1680486397810,1.761e-05,27647.0,27646.0,1.32671791]
[1680486398027,1.761e-05,27647.0,27646.0,1.62689791]
[1680486398284,1.761e-05,27647.0,27646.0,1.97084343]
[1680486398497,1.761e-05,27647.0,27646.0,1.24565343]
[1680486398720,1.761e-05,27647.0,27646.0,1.42085343]
[1680486398938,1.761e-05,27647.0,27646.0,0.86481343]
[1680486399158,0.02365,27649.0,27646.0,1.04547343]
[1680486399381,0.02365,27650.0,27646.0,1.04547343]
[1680486399382,0.02365,27650.0,27648.0,0.35497497]
[1680486399687,0.02365,27650.0,27647.0,0.05592391]
[1680486399688,0.16562487,27650.0,27649.0,0.126585]
[1680486399896,0.02386,27650.0,27645.0,0.1]
[1680486400340,0.0313694,27649.0,27645.0,0.118086]
[1680486400571,0.043157,27648.0,27645.0,0.1298946]
[1680486400801,0.14218487,27648.0,27645.0,0.1298946]
[1680486401038,0.045887,27647.0,27645.0,0.1298946]
[1680486401256,0.00021,27647.0,27645.0,0.1298946]
[1680486403067,0.0313694,27649.0,27645.0,0.118086]
[1680486403068,0.00021,27648.0,27645.0,0.118086]
[1680486403301,0.2,27646.0,27645.0,0.1]
[1680486403539,0.59995927,27646.0,27645.0,0.1]
[1680486403762,0.24444115,27646.0,27645.0,0.1]
[1680486403986,0.04491,27646.0,27645.0,0.118086]
[1680486404215,0.03085189,27646.0,27645.0,0.55774678]
[1680486404444,0.03085189,27646.0,27645.0,0.57268463]
[1680486404732,0.03085189,27646.0,27645.0,0.57274463]
[1680486405197,0.02365,27650.0,27646.0,0.05]
[1680486405420,0.02365,27650.0,27649.0,0.00046885]
[1680486405642,0.02365,27650.0,27649.0,0.35562382]
[1680486405881,0.02365,27650.0,27649.0,0.40987382]
[1680486406114,0.02365,27650.0,27649.0,0.05489885]
[1680486406329,0.02365,27650.0,27649.0,0.41837382]
[1680486406560,0.02365,27650.0,27649.0,0.50132913]
[1680486406781,0.16562487,27650.0,27649.0,0.018203]
[1680486407011,0.067303,27650.0,27649.0,0.018083]
[1680486407280,0.067303,27650.0,27649.0,0.090418]
[1680486407525,0.0543079,27650.0,27649.0,0.08735221]
[1680486407962,0.0543079,27650.0,27649.0,0.11785312]
[1680486408182,0.0543079,27650.0,27649.0,0.08735221]
[1680486408405,0.1011299,27650.0,27649.0,0.08735221]
[1680486408626,0.1011299,27650.0,27649.0,0.01501721]
[1680486408845,0.45610487,27650.0,27649.0,0.01501721]
[1680486409074,0.65563602,27650.0,27645.0,0.09709481]
[1680486409294,0.54401284,27649.0,27645.0,0.12837358]
[1680486409515,0.05029,27648.0,27645.0,0.11499981]
[1680486409732,0.05,27646.0,27645.0,0.11499981]
[1680486409956,0.05,27646.0,27645.0,0.09691481]
[1680486409957,0.45179597,27646.0,27645.0,0.09691481]
[1680486410395,0.45179597,27646.0,27645.0,4.81e-06]
[1680486410396,0.45194597,27646.0,27645.0,4.81e-06]
[1680486410626,0.19953115,27641.0,27637.0,0.036362]
[1680486410846,0.54534684,27640.0,27637.0,0.018091]
[1680486411114,0.043685,27639.0,27637.0,0.018091]
[1680486411573,0.043685,27639.0,27637.0,0.02356539]
[1680486411790,0.00027,27642.0,27637.0,0.02356539]
[1680486411791,6e-05,27642.0,27637.0,0.02356539]
[1680486412013,6e-05,27642.0,27637.0,0.00547439]
[1680486412248,0.0297985,27638.0,27637.0,0.12664]
[1680486412474,0.0297985,27638.0,27624.0,0.00046885]
[1680486412475,0.04994,27637.0,27624.0,0.00046885]
[1680486412705,0.05,27634.0,27632.0,6e-05]
[1680486412932,0.05,27634.0,27627.0,0.036375]
[1680486412933,0.74093299,27633.0,27627.0,0.036375]
[1680486413152,0.045201,27632.0,27627.0,0.0217355]
[1680486413373,0.19953115,27630.0,27627.0,0.0217355]
[1680486413592,0.74280699,27629.0,27625.0,0.00018]
[1680486413819,0.23707087,27628.0,27623.0,0.0215]
[1680486414049,0.23707087,27628.0,27617.0,0.00018]
[1680486414050,0.19953115,27621.0,27617.0,0.00018]
[1680486414286,0.54427384,27620.0,27615.0,0.018105]